[Event "Summer Prague Open-A 2022"]
[Site "Prague"]
[Date "2022.08.12"]
[Round "9.7"]
[White "Weishaeutel, Moritz"]
[Black "Roubalik, Jakub"]
[Result "1-0"]
[ECO "D00"]
[WhiteElo "2400"]
[BlackElo "2380"]
[Annotator "TA"]
[PlyCount "51"]
[EventDate "2022.08.05"]
[EventType "swiss"]
[EventCountry "CZE"]
[SourceTitle "playchess.com"]
[Source "ChessBase"]
[SourceQuality "1"]
[TimeControl "40/5400+30:1800+30"]

{[%evp 9,51,-17,-21,-24,4,8,42,33,66,47,106,124,117,98,102,114,118,98,218,187,220,159,149,0,0,0,502,483,632,391,670,590,878,874,1646,1616,1612,1619,1519,1451,29988,29984,5689,1189]} 1. d4 {[%emt 0:00:00]} d5 {[%emt 0:00:14]} 2. Nc3 {[%emt 0:00:00]} Nf6 {[%emt 0:00:25]} 3. Bf4 {[%emt 0:00:17]} e6 {[%emt 0:05:53]} 4. e3 {[%emt 0:00:09]} Bd6 {[%emt 0:01:21]} 5. Bg3 {[%emt 0:01:25]} O-O {[%emt 0:01:14]} 6. Bd3 {[%emt 0:01:43] D00: 1 d4 d5: Unusual lines.} b6 {[%emt 0:06:47] [#]} 7. Nb5 $146 {[%emt 0:03:50]} ({Predecessor:} 7. Nf3 Ba6 8. O-O Bxg3 9. hxg3 c5 10. Re1 Bxd3 11. cxd3 cxd4 12. Nxd4 e5 13. Nf3 {0-1 (31) Osmonbekov,T (2136)-Kanakaris,G (2400) Chess.com INT 2021}) 7... Bxg3 {[%emt 0:04:49]} 8. hxg3 {[%emt 0:00:08][%cal Od3h7] White is slightly better.} h6 {[%emt 0:00:06]} 9. g4 {[%emt 0:06:55][%cal Og4g5] aiming for g5! White is more active.} Ne4 {[%emt 0:09:39]} ({Black should try} 9... c6 $14) 10. Bxe4 $16 {[%emt 0:08:13]} dxe4 {[%emt 0:00:09]} 11. g5 $1 {[%emt 0:00:06]} Qxg5 {[%emt 0:15:29]} 12. Nxc7 {[%emt 0:01:26]} Qxg2 {[%emt 0:00:11]} 13. Qh5 {[%emt 0:00:39] Threatens to win with Ne2.} Na6 {[%emt 0:04:17]} 14. Nxa8 $18 {[%emt 0:01:28] Ne2 is the strong threat.} Nb4 {[%emt 0:06:26]} 15. O-O-O {[%emt 0:01:38]} Qxf2 {[%emt 0:07:00][%csl Gb4][%cal Rf2c2] [#]} 16. Qh2 {[%emt 0:07:25]} ({Don't take} 16. Qe2 $6 Qxe2 17. Nxe2 Ba6 $11) ({White has to play} 16. Rh2 $1 $16 {[%cal Rh2f2]} Qxe3+ 17. Kb1) 16... Qxe3+ $11 {[%emt 0:22:06]} 17. Kb1 $1 {[%emt 0:00:09] Black must now prevent Nc7.} Bb7 $2 {[%emt 0:09:16][%mdl 8192]} (17... e5 $1 $11 {and Black has nothing to worry.} 18. Nc7 (18. dxe5 Bg4 $17) 18... Bg4) 18. Nc7 $18 {[%emt 0:00:18][%cal Ba8c7,Bc7d5,Bd5f6,Bf6d7][%mdl 32]} Rc8 {[%emt 0:00:52]} 19. a3 {[%emt 0:05:59]} Nc6 {[%emt 0:00:49]} (19... Nd3 20. Nh3 Qxd4 21. cxd3 Qd7 22. Nxe6 fxe6) 20. d5 {[%emt 0:02:43]} exd5 {[%emt 0:00:04]} 21. Nxd5 {[%emt 0:00:07]} Qc5 {[%emt 0:00:10] [#]} 22. Nf6+ $1 {[%emt 0:02:17][%mdl 512]} Kh8 {[%emt 0:00:06]} 23. Qf4 {[%emt 0:00:22][%cal Oh1h6] White wants to mate with Rxh6+!} Qf8 {[%emt 0:00:47]} 24. Nd7 {[%emt 0:01:29]} Qg8 {[%emt 0:00:35]} 25. Ne2 {[%emt 0:00:47]} Ne7 {[%emt 0:00:28] [#]} 26. Qe5 {[%emt 0:00:28] Weighted Error Value: White=0.31/Black=1.10} (26. Rxh6+ $142 $1 {[%mdl 512]} gxh6 27. Qxh6+ Qh7 28. Qf6+ Qg7 29. Rh1+ Kg8 30. Qxe7) 1-0

[Event "Summer Prague Open-A 2022"]
[Site "Prague"]
[Date "2022.08.12"]
[Round "9.8"]
[White "Neuman, Petr"]
[Black "Sarkar, Justin"]
[Result "1/2-1/2"]
[ECO "A22"]
[WhiteElo "2378"]
[BlackElo "2346"]
[Annotator "TA"]
[PlyCount "120"]
[EventDate "2022.08.05"]
[EventType "swiss"]
[EventCountry "CZE"]
[SourceTitle "playchess.com"]
[Source "ChessBase"]
[SourceQuality "1"]
[TimeControl "40/5400+30:1800+30"]

{[%evp 16,120,6,0,0,-6,0,0,14,0,12,0,0,-6,13,2,48,47,41,41,62,56,76,46,52,50,68,29,31,22,17,8,12,6,5,0,26,0,0,0,41,39,48,63,72,0,0,0,0,0,0,0,0,0,0,0,0,0,197,0,0,-34,-39,-39,-39,-64,0,-4,0,-39,-41,-46,0,-31,-27,-15,-9,-14,0,0,0,0,0,0,0,0,0,0,60,0,0,0,0,0,0,0,0,0,0,0,0,0,0,0,0,0,0]} 1. c4 {[%emt 0:05:57]} e5 {[%emt 0:09:49]} 2. Nc3 {[%emt 0:00:10]} Nf6 {[%emt 0:01:26]} 3. e3 {[%emt 0:00:04]} g6 {[%emt 0:01:06]} 4. Nf3 {[%emt 0:00:32]} d6 {[%emt 0:01:11]} 5. d4 {[%emt 0:00:04]} Nbd7 {[%emt 0:01:18]} 6. g3 {[%emt 0:00:05]} Bg7 {[%emt 0:00:06]} 7. Bg2 {[%emt 0:00:04]} O-O {[%emt 0:00:10]} 8. O-O {[%emt 0:00:04]} Re8 {[%emt 0:02:40]} 9. a4 {[%emt 0:01:07]} a5 {[%emt 0:01:20] E67: King's Indian: Fianchetto: 6...Nbd7.} 10. b3 {[%emt 0:00:22]} exd4 {[%emt 0:01:38]} 11. exd4 {[%emt 0:00:06]} Nb8 {[%emt 0:00:18]} 12. h3 {[%emt 0:01:37]} Nc6 {[%emt 0:06:41]} 13. Bg5 {[%emt 0:04:48]} h6 {[%emt 0:02:08]} 14. Be3 {[%emt 0:00:14]} d5 {[%emt 0:02:18] [#]} 15. Ne5 $146 {[%emt 0:05:34][%cal Rc3d5]} ({Predecessor:} 15. Nb5 Re7 16. g4 Be6 17. Ne5 Nxe5 18. dxe5 Ne4 19. f3 Ng3 20. Re1 dxc4 21. Bf4 {½-½ (33) Turova,I (2428)-Fominykh,M (2303) Olginka 2011}) 15... Nxe5 {[%emt 0:08:39]} (15... Nb4 $11) 16. dxe5 $14 {[%emt 0:00:06]} Rxe5 {[%emt 0:00:09]} 17. cxd5 {[%emt 0:07:17]} Ne8 {[%emt 0:08:00][%cal Oe5e3]} 18. Qd2 {[%emt 0:01:13]} Kh7 {[%emt 0:07:51]} 19. Bd4 {[%emt 0:01:09]} Re7 {[%emt 0:00:10]} 20. Bxg7 {[%emt 0:00:57]} Kxg7 {[%emt 0:00:17]} 21. Ne4 {[%emt 0:11:34]} Bf5 {[%emt 0:03:19]} 22. Nc5 {[%emt 0:01:22]} Nd6 {[%emt 0:03:26]} 23. g4 {[%emt 0:00:07]} Bc8 {[%emt 0:00:45]} 24. Qd4+ {[%emt 0:04:16]} Kg8 {[%emt 0:04:38]} 25. Rfc1 {[%emt 0:02:09]} Qe8 {[%emt 0:05:22]} 26. Nd3 {[%emt 0:05:45]} b6 $1 {[%emt 0:05:18]} 27. f4 {[%emt 0:01:28]} f5 {[%emt 0:04:06]} 28. Ne5 {[%emt 0:00:47]} g5 {[%emt 0:02:51]} 29. Nc6 $1 {[%emt 0:02:53]} Re2 {[%emt 0:00:55] [#]} 30. Ne5 {[%emt 0:03:23]} (30. fxg5 $1 $16 hxg5 31. Rc3) 30... gxf4 $11 {[%emt 0:05:43]} 31. Re1 {[%emt 0:00:06] Active counter play!} Rxe1+ {[%emt 0:01:51]} 32. Rxe1 {[%emt 0:00:02]} fxg4 {[%emt 0:00:22]} 33. Qxf4 {[%emt 0:01:18]} Qf8 {[%emt 0:03:06]} 34. Qg3 {[%emt 0:00:30]} Qg7 $36 {[%emt 0:04:06][%mdl 2048] Threatens to win with ...gxh3. Black has good play.} 35. hxg4 {[%emt 0:00:28]} Bb7 {[%emt 0:01:44]} 36. Nc4 {[%emt 0:01:46]} Nf5 {[%emt 0:00:56] [#]} (36... Nxc4 $11 37. bxc4 Rf8) 37. Qf4 $2 {[%emt 0:01:12]} (37. Qf2 $1 $18 {[%cal Rf2f5]} Nd6 38. Nxd6 cxd6 39. Re6 (39. Qxb6 Rf8 $18)) 37... Nh4 {[%emt 0:00:39]} 38. Bh1 {[%emt 0:01:51]} Rf8 {[%emt 0:00:29]} 39. Qg3 {[%emt 0:00:27]} Nf5 {[%emt 0:01:39]} 40. Qf4 {[%emt 0:00:50]} Nh4 {[%emt 0:01:11]} (40... Bc8 $15 41. Ne5 Nd6) 41. Qg3 {[%emt 0:30:12]} Nf5 {[%emt 0:30:43]} 42. Qf4 {[%emt 0:01:00]} Nd4 {[%emt 0:00:00]} 43. Qg3 {[%emt 0:00:00]} Nxb3 {[%emt 0:00:00]} 44. Kh2 {[%emt 0:00:00]} Nc5 {[%emt 0:00:00]} 45. Ne3 $1 {[%emt 0:00:00]} Nd3 {[%emt 0:00:00]} (45... Nxa4 46. Nf5 Rxf5 47. gxf5 Qxg3+ 48. Kxg3 $18) (45... Qf6 {seems wilder.} 46. Nf5 Bc8 47. Re7 Bxf5 48. gxf5+ Kh8) 46. Re2 {[%emt 0:00:00][%cal Be1e2,Be2c2,Bc2c7,Bc7b7][%mdl 32] Prevents Qb2. Strongly threatening Nf5.} Qe5 {[%emt 0:00:00]} (46... Bc8 {feels hotter.} 47. Be4 Nc5 48. Bf5 Qe7) 47. Qxe5 {[%emt 0:00:00]} Nxe5 {[%emt 0:00:00]} 48. Kg3 {[%emt 0:00:00]} Bc8 {[%emt 0:00:00] Inhibits Nf5.} 49. Rc2 {[%emt 0:00:00]} Bd7 {[%emt 0:00:00]} 50. Rxc7 {[%emt 0:00:00]} Bxa4 {[%emt 0:00:00]} 51. Nf5 {[%emt 0:00:00]} Bd7 {[%emt 0:00:11]} ({Black should play} 51... h5 $11) 52. Nxh6+ {[%emt 0:00:00]} (52. Ne7+ $1 $14 Kh8 53. Nc6 Nxc6 54. dxc6) 52... Kg7 {[%emt 0:00:36] The position is equal.} (52... Kh7 $5 53. Nf5 Kg6 $11) 53. Nf5+ {[%emt 0:00:00]} Kf6 {[%emt 0:00:19]} 54. Rb7 {[%emt 0:00:00]} Bxf5 {[%emt 0:02:02]} 55. Rxb6+ {[%emt 0:00:00]} Kg5 {[%emt 0:00:28]} 56. gxf5 {[%emt 0:00:00]} Kxf5 {[%emt 0:00:19]} 57. Ra6 {[%emt 0:00:00]} Rh8 {[%emt 0:01:32]} 58. Bg2 {[%emt 0:00:00]} Rg8+ {[%emt 0:00:05]} 59. Kf2 {[%emt 0:00:00]} Nd3+ {[%emt 0:00:16]} 60. Kf1 {[%emt 0:00:00]} Nf4 {[%emt 0:00:28] Weighted Error Value: White=0.13 (very precise) /Black=0.17 (very precise)} 1/2-1/2

[Event "Summer Prague Open-A 2022"]
[Site "Prague"]
[Date "2022.08.12"]
[Round "9.9"]
[White "Kambrath, Yannick"]
[Black "Kulhanek, Tomas"]
[Result "1/2-1/2"]
[ECO "A21"]
[WhiteElo "2401"]
[BlackElo "2319"]
[Annotator "TA"]
[PlyCount "18"]
[EventDate "2022.08.05"]
[EventType "swiss"]
[EventCountry "CZE"]
[SourceTitle "playchess.com"]
[Source "ChessBase"]
[SourceQuality "1"]
[TimeControl "40/5400+30:1800+30"]

{[%evp 9,18,-17,-12,-70,-67,-74,-66,-58,-69,-73,-27]} 1. c4 {[%emt 0:04:05]} e5 {[%emt 0:00:04]} 2. Nc3 {[%emt 0:00:12]} Bb4 {[%emt 0:00:27]} 3. e4 {[%emt 0:05:16]} Nc6 {[%emt 0:01:18]} 4. a3 {[%emt 0:01:52]} Bxc3 {[%emt 0:05:11]} 5. bxc3 {[%emt 0:00:09]} d6 {[%emt 0:00:07] [#]} 6. g3 $146 {[%emt 0:01:25] A21: English Opening: 1...e5 2 Nc3.} (6. d3 $11) ({Predecessor:} 6. Ne2 Nge7 7. Ng3 O-O 8. Bd3 Be6 9. O-O Qd7 10. Qa4 {1-0 (41) Veltkamp,G (2140)-Fernandez,M (2227) Caleta 2020}) 6... f5 $15 {[%emt 0:02:33]} 7. f3 {[%emt 0:19:08]} Nf6 {[%emt 0:01:10]} 8. d3 {[%emt 0:00:40]} O-O {[%emt 0:00:49]} 9. Bg2 {[%emt 0:08:39]} Qe8 {[%emt 0:04:41] Weighted Error Value: White=0.22 (precise) /Black=0.00 (flawless)} (9... Qe7 $17) 1/2-1/2

[Event "Summer Prague Open-A 2022"]
[Site "Prague"]
[Date "2022.08.12"]
[Round "9.10"]
[White "Dauth, Benjamin"]
[Black "Guz, Ari"]
[Result "0-1"]
[ECO "B34"]
[WhiteElo "2243"]
[BlackElo "2331"]
[Annotator "TA"]
[PlyCount "64"]
[EventDate "2022.08.05"]
[EventType "swiss"]
[EventCountry "CZE"]
[SourceTitle "playchess.com"]
[Source "ChessBase"]
[SourceQuality "1"]
[TimeControl "40/5400+30:1800+30"]

{[%evp 14,64,-34,-43,-29,-35,-14,-32,-29,-84,-5,-6,-4,-20,-20,-22,0,-24,-30,-100,-97,-105,-94,-100,-98,-108,-111,-115,-104,-104,-108,-137,-132,-175,-163,-163,-189,-275,-277,-256,-245,-390,-404,-466,-371,-910,-890,-1143,-1137,-1127,-1014,-888,-776]} 1. e4 {[%emt 0:01:17]} c5 {[%emt 0:00:32]} 2. Nf3 {[%emt 0:01:21]} Nc6 {[%emt 0:01:16]} 3. d4 {[%emt 0:00:09]} cxd4 {[%emt 0:00:08]} 4. Nxd4 {[%emt 0:00:05]} g6 {[%emt 0:00:08]} 5. Nxc6 {[%emt 0:00:55]} bxc6 {[%emt 0:00:17]} 6. Bd2 {[%emt 0:00:26]} Bg7 {[%emt 0:03:21]} 7. Bc3 {[%emt 0:00:07]} Nf6 {[%emt 0:00:12]} 8. Bd3 {[%emt 0:00:47]} O-O {[%emt 0:04:38] B33: Sicilian: Pelikan and Sveshnikov Variations.} 9. O-O {[%emt 0:00:07]} d5 {[%emt 0:00:18]} 10. exd5 {[%emt 0:01:47]} cxd5 {[%emt 0:00:47] Black is slightly better.} 11. Be5 {[%emt 0:02:36] [#] Inhibits Qd6.} (11. Qf3 $11) 11... Bb7 $146 {[%emt 0:05:06]} (11... Ng4 $1 $17 12. Bxg7 Qd6) ({Predecessor:} 11... Qb6 12. Nd2 Ba6 13. c4 dxc4 14. Nxc4 Qe6 15. Qe2 Rfd8 16. Bxf6 Qxf6 17. b3 Bb7 {½-½ (43) Stojkoski,A (2104)-Hestvik,E (1860) Struga 2021}) 12. Nd2 $11 {[%emt 0:01:26]} Nd7 {[%emt 0:01:46]} 13. Bxg7 {[%emt 0:00:57]} Kxg7 {[%emt 0:00:03]} 14. Re1 {[%emt 0:02:02]} e5 {[%emt 0:03:48]} 15. c4 {[%emt 0:01:12]} d4 {[%emt 0:07:56]} 16. Be4 {[%emt 0:01:25]} (16. a3 $11 {keeps the balance.}) 16... Bxe4 $17 {[%emt 0:03:31]} 17. Nxe4 {[%emt 0:00:06][%cal Of2f4]} f5 {[%emt 0:00:57]} 18. Ng3 {[%emt 0:00:21]} Qb6 {[%emt 0:06:03]} 19. Qd2 {[%emt 0:00:22]} a5 {[%emt 0:12:36] Inhibits b4.} 20. Rad1 {[%emt 0:01:16]} Qc5 {[%emt 0:04:50]} 21. b3 {[%emt 0:00:44]} Rad8 {[%emt 0:02:49]} 22. Ne2 {[%emt 0:07:25]} Nf6 {[%emt 0:01:17]} 23. Nc1 {[%emt 0:00:04]} Rfe8 {[%emt 0:03:02]} 24. Nd3 {[%emt 0:03:47]} Qc7 {[%emt 0:00:02]} 25. Qg5 {[%emt 0:00:12]} (25. Nc1 $142) 25... h6 $19 {[%emt 0:05:33]} 26. Qh4 {[%emt 0:01:52]} g5 {[%emt 0:01:42][%cal Bg6g5,Bg5g4][%mdl 32]} 27. Qg3 {[%emt 0:03:44]} (27. Qh3 {was the only defense.} e4 28. Qxf5) 27... f4 {[%emt 0:00:44]} 28. Qh3 {[%emt 0:00:09]} e4 {[%emt 0:00:21] Threatens to win with ...g4.} 29. Nc1 $2 {[%emt 0:00:34]} (29. Qf5 exd3 30. Qxd3) 29... d3 {[%emt 0:01:47] Black is clearly winning.} 30. Nxd3 {[%emt 0:00:33]} g4 {[%emt 0:06:32][%mdl 64] [#] Deflection} ({Wrong is} 30... Rxd3 $2 31. Rxd3 exd3 32. Rxe8 $19) 31. Qh4 {[%emt 0:00:22]} Rxd3 {[%emt 0:00:18]} 32. h3 {[%emt 0:02:48]} Qd7 {[%emt 0:04:50] Weighted Error Value: White=0.51/Black=0.12 (very precise)} 0-1

[Event "Summer Prague Open-A 2022"]
[Site "Prague"]
[Date "2022.08.12"]
[Round "9.11"]
[White "Brejnik, Gustav"]
[Black "Svatos, Jan"]
[Result "1-0"]
[ECO "A77"]
[WhiteElo "2292"]
[BlackElo "2185"]
[Annotator "TA"]
[PlyCount "85"]
[EventDate "2022.08.05"]
[EventType "swiss"]
[EventCountry "CZE"]
[SourceTitle "playchess.com"]
[Source "ChessBase"]
[SourceQuality "1"]
[TimeControl "40/5400+30:1800+30"]

{[%evp 23,85,37,41,7,17,14,0,-38,183,170,172,174,277,272,318,268,258,254,268,237,409,402,402,399,618,616,614,587,593,558,643,629,616,603,536,481,490,471,549,566,602,633,585,609,613,581,564,422,433,277,614,590,663,662,650,617,1294,1312,1083,1033,1031,940,12838,12837]} 1. d4 {[%emt 0:00:02]} Nf6 {[%emt 0:00:04]} 2. c4 {[%emt 0:00:04]} e6 {[%emt 0:00:02]} 3. Nf3 {[%emt 0:00:06]} c5 {[%emt 0:00:04]} 4. d5 {[%emt 0:00:06]} exd5 {[%emt 0:00:04]} 5. cxd5 {[%emt 0:00:04]} d6 {[%emt 0:00:01]} 6. Nc3 {[%emt 0:00:07]} g6 {[%emt 0:00:03]} 7. Nd2 {[%emt 0:00:17]} Bg7 {[%emt 0:00:06]} 8. e4 {[%emt 0:00:06]} O-O {[%emt 0:00:06]} 9. Be2 {[%emt 0:00:04]} Re8 {[%emt 0:00:24]} 10. O-O {[%emt 0:00:10]} a6 {[%emt 0:00:21]} 11. a4 {[%emt 0:00:44]} Nbd7 {[%emt 0:06:50]} 12. Re1 {[%emt 0:05:21]} Ne5 {[%emt 0:05:40]} 13. f4 {[%emt 0:13:43] A77: Modern Benoni: Classical: 9...Re8 10 Nd2: 10...a6 and 10...Nbd7.} Neg4 {[%emt 0:00:16][%cal Oc5c4]} 14. Bf3 {[%emt 0:00:16]} ({But not} 14. Nc4 $2 Nxe4 $1 15. Bxg4 Bxg4 16. Qxg4 Nxc3 $19) 14... h5 $1 {[%emt 0:01:28][%cal Of6d5] Threatens to win with ...Nxd5!} 15. h3 {[%emt 0:03:48] [#] aiming for Nc4. The position is equal.} Nh6 $146 {[%emt 0:00:26] Black cannot hold the game after this.} (15... Nxd5 $1 $15 16. Nxd5 Bd4+ 17. Kf1 {[#]} Qh4 $1) ({Predecessor:} 15... Nxe4 16. Rxe4 Bd4+ 17. Rxd4 cxd4 18. hxg4 dxc3 19. Nf1 Qb6+ 20. Kh2 hxg4 21. a5 cxb2 22. Bxb2 Qxb2 23. Rb1 Qh8+ 24. Kg1 gxf3 {0-1 (24) Budrewicz,K (2183)-Gabrielian,A (2464) Chess.com INT 2021}) 16. Nc4 $18 {[%emt 0:04:39]} Nh7 {[%emt 0:09:52]} 17. Be3 {[%emt 0:18:05]} Bf8 {[%emt 0:08:07]} (17... b6 $142 18. Qd3 Rb8) 18. Qd2 {[%emt 0:02:00]} Kh8 {[%emt 0:07:55]} 19. Bf2 {[%emt 0:25:26]} Bd7 {[%emt 0:07:19]} 20. a5 {[%emt 0:00:17][%cal Ba4a5,Ba5b6][%mdl 32]} Rc8 {[%emt 0:12:06]} 21. Rab1 {[%emt 0:01:28]} b5 $2 {[%emt 0:11:43]} (21... Kg8 {was worth a try.} 22. Be2 Rc7) 22. axb6 {[%emt 0:00:23]} Bb5 {[%emt 0:00:06]} 23. Na3 {[%emt 0:03:14]} Qd7 {[%emt 0:18:31]} (23... Rb8 $142 24. Naxb5 axb5) 24. b4 {[%emt 0:01:12]} c4 {[%emt 0:00:12]} 25. Bd4+ {[%emt 0:05:47]} Bg7 {[%emt 0:01:28]} 26. Ra1 {[%emt 0:01:10]} Ra8 {[%emt 0:00:14]} 27. Bxg7+ {[%emt 0:00:31]} Kxg7 {[%emt 0:00:01]} 28. Qd4+ {[%emt 0:00:10]} Kg8 {[%emt 0:00:04]} 29. Nxc4 {[%emt 0:00:32]} Bxc4 {[%emt 0:03:59]} 30. Qxc4 {[%emt 0:00:02]} Rec8 {[%emt 0:00:11]} 31. Qd4 {[%emt 0:00:13]} Nf8 {[%emt 0:01:19]} 32. Be2 {[%emt 0:07:06]} Qb7 {[%emt 0:00:10]} 33. Na4 {[%emt 0:00:56]} Nd7 {[%emt 0:00:30]} 34. Rec1 {[%emt 0:00:23]} Rab8 {[%emt 0:00:41]} 35. Rxc8+ {[%emt 0:05:46]} Qxc8 {[%emt 0:04:37]} 36. Qc4 {[%emt 0:00:59]} Qe8 {[%emt 0:02:52]} (36... Qxc4 37. Bxc4 Nxb6) 37. Bd3 {[%emt 0:01:29] White is clearly winning.} Nxb6 {[%emt 0:00:11]} 38. Nxb6 {[%emt 0:00:11]} Rxb6 {[%emt 0:00:01]} 39. Rxa6 {[%emt 0:00:21]} Rxa6 {[%emt 0:00:12]} 40. Qxa6 {[%emt 0:00:06] KQB-KQN} f5 {[%emt 0:00:04]} 41. e5 {[%emt 0:05:28]} dxe5 {[%emt 0:00:53]} 42. fxe5 {[%emt 0:02:03] e6 is the strong threat.} Qxe5 {[%emt 0:00:16]} 43. Qxg6+ {[%emt 0:00:18] Weighted Error Value: White=0.20 (precise) /Black=0.62} 1-0

[Event "Summer Prague Open-A 2022"]
[Site "Prague"]
[Date "2022.08.12"]
[Round "9.13"]
[White "Fiskaaen, Martin Holten"]
[Black "Karas, Marek"]
[Result "0-1"]
[ECO "D10"]
[WhiteElo "1930"]
[BlackElo "2286"]
[Annotator "TA"]
[PlyCount "72"]
[EventDate "2022.08.05"]
[EventType "swiss"]
[EventCountry "CZE"]
[SourceTitle "playchess.com"]
[Source "ChessBase"]
[SourceQuality "1"]
[TimeControl "40/5400+30:1800+30"]

{[%evp 12,72,38,22,30,0,0,6,18,-13,-22,-17,0,0,0,0,0,-8,-14,-13,-11,-5,-10,-82,-93,-351,-329,-332,-322,-322,-310,-502,-486,-2073,-2086,-1415,-1236,-1239,-1239,-29978,-29979,-2565,-1191,-29987,-29988,-29988,-29988,-29988,-29985,-29992,-29991,-29992,-29989,-29992,-29992,-29993,-29992,-29994,-29986,-29986,-29984,-29985,-29986]} 1. d4 {[%emt 0:00:04]} d5 {[%emt 0:00:50]} 2. c4 {[%emt 0:00:15]} c6 {[%emt 0:00:06]} 3. Nc3 {[%emt 0:00:13]} Nf6 {[%emt 0:00:08]} 4. e3 {[%emt 0:00:13]} a6 {[%emt 0:00:30]} 5. Nf3 {[%emt 0:01:38]} b5 {[%emt 0:00:10]} 6. b3 {[%emt 0:00:50][%cal Bb2b3,Bb3c4][%mdl 32]} Bg4 {[%emt 0:00:09]} 7. Bd3 {[%emt 0:10:45] 7.a4 is a critical line.} e6 {[%emt 0:01:49] D15: Slav Defence: 4 Nc3 a6 and gambit lines after 4 Nc3 dxc4.} 8. a4 {[%emt 0:04:32][%cal Ra4b5]} bxc4 {[%emt 0:02:45]} 9. bxc4 {[%emt 0:00:29]} Bb4 {[%emt 0:00:30] The position is equal.} 10. Bd2 {[%emt 0:02:51] [#]} (10. Bb2 $5 {[%cal Rd1b3]}) 10... O-O $146 {[%emt 0:01:18]} ({Predecessor:} 10... dxc4 11. Bxc4 c5 12. dxc5 Bxc5 13. h3 Bh5 14. a5 O-O 15. Na4 Bd6 16. Nb6 Ra7 {½-½ (56) Kempinski,R (2528)-Slobodjan,R (2561) Germany 2000}) 11. O-O {[%emt 0:03:30]} a5 {[%emt 0:07:40]} 12. Rc1 {[%emt 0:05:47]} Nbd7 {[%emt 0:02:35]} 13. cxd5 {[%emt 0:05:53]} cxd5 {[%emt 0:00:10]} 14. Nb5 {[%emt 0:03:29]} Ne4 {[%emt 0:09:24]} 15. Bxb4 {[%emt 0:12:03]} axb4 {[%emt 0:01:02]} 16. h3 {[%emt 0:00:13]} Bh5 {[%emt 0:07:54][%cal Bg4h5,Bh5g6,Bg6e4][%mdl 32]} 17. g4 {[%emt 0:06:25]} (17. Qc2 $1 $11) 17... Bg6 $17 {[%emt 0:00:19]} 18. Ne5 $2 {[%emt 0:01:01][%mdl 8192] [#] This costs White the game.} (18. Kg2 $17) 18... Nxe5 $19 {[%emt 0:00:59]} 19. dxe5 {[%emt 0:00:10]} Qh4 {[%emt 0:01:46]} 20. Bxe4 {[%emt 0:04:20]} Bxe4 {[%emt 0:01:30]} 21. Kh2 $2 {[%emt 0:00:20]} (21. Qe2) 21... f5 {[%emt 0:04:49][%cal Bf7f5,Bf5g4][%mdl 32] [#] aiming for ...fxg4.} 22. f3 {[%emt 0:24:49]} (22. g5 $142 f4 23. Qg4 Qxg4 24. hxg4 fxe3 25. fxe3) 22... fxg4 {[%emt 0:00:23]} 23. fxe4 {[%emt 0:00:14]} Qxh3+ {[%emt 0:01:08]} 24. Kg1 {[%emt 0:00:06]} Qxe3+ {[%emt 0:00:28]} 25. Kh2 {[%emt 0:00:39]} Rxf1 {[%emt 0:09:16]} 26. Qxf1 {[%emt 0:00:12]} Qd2+ {[%emt 0:00:12]} (26... Rf8 $142 27. Qxf8+ Kxf8 28. Rf1+ Ke7) 27. Kg1 {[%emt 0:01:45]} g3 {[%emt 0:00:49][%csl Gg3][%cal Rd2h2] Black mates.} 28. Qh3 {[%emt 0:08:36]} Qxc1+ {[%emt 0:00:14] KQR-KQN} 29. Kg2 {[%emt 0:00:10]} Qd2+ {[%emt 0:00:14]} 30. Kg1 {[%emt 0:00:10]} Qe1+ {[%emt 0:00:18]} 31. Kg2 {[%emt 0:00:09]} Qxe4+ {[%emt 0:00:07]} 32. Kg1 {[%emt 0:00:12]} Qe1+ {[%emt 0:00:11]} 33. Kg2 {[%emt 0:00:06]} Qf2+ {[%emt 0:00:04]} 34. Kh1 {[%emt 0:00:07]} g2+ {[%emt 0:00:05]} 35. Qxg2 {[%emt 0:00:17]} Qxg2+ {[%emt 0:00:05]} 36. Kxg2 {[%emt 0:00:10]} b3 {[%emt 0:00:11] Weighted Error Value: White=0.90/Black=0.35} 0-1